bitfinex/quotes_ETHUSD_20250323
["timestamp","ask_amount","ask_price","bid_price","bid_amount"]
[1742740790705,2.50203139,2014.9,2014.6,9.63074]
[1742740790893,3.31273139,2014.9,2014.6,9.63074]
[1742740791082,3.31273139,2014.9,2014.6,4.96374]
[1742740791289,3.31273139,2014.9,2014.6,9.63074]
[1742740793715,2.50203139,2014.9,2014.6,9.63074]
[1742740793915,2.50203139,2014.9,2014.7,4.18345809]
[1742740794613,12.39881,2015.0,2014.7,4.18345809]
[1742740795441,12.39881,2015.0,2014.7,9.14696809]
[1742740795914,12.39881,2015.0,2014.7,4.96351]
[1742740796115,2.50203139,2014.9,2014.6,9.6307]
[1742740798018,2.50203139,2014.9,2014.6,14.59432]
[1742740798220,2.50203139,2014.9,2014.7,4.96351]
[1742740798713,7.4359,2015.0,2014.7,4.96351]
[1742740798928,7.4359,2015.0,2014.7,14.90095809]
[1742740799087,7.4359,2015.0,2014.7,9.93744809]
[1742740799289,7.4359,2015.0,2014.7,5.75405]
[1742740800445,7.4359,2015.0,2014.7,10.71743]
[1742740800717,7.4359,2015.0,2014.8,4.96315]
[1742740801720,7.4359,2015.0,2014.7,4.96344]
[1742740801918,12.39876,2015.0,2014.6,9.63054]
[1742740802227,2.50203139,2014.9,2014.6,9.63054]
[1742740802519,2.50203139,2014.9,2014.6,4.96354]
[1742740802725,0.7848,2014.8,2014.5,31.21492]
[1742740803021,0.7848,2014.8,2014.5,26.251]
[1742740803324,5.74856,2014.6,2014.5,26.251]
[1742740803490,0.7848,2014.6,2014.5,26.251]
[1742740807133,2.50203139,2014.7,2014.5,26.251]
[1742740809028,6.46508412,2014.7,2014.5,26.251]
[1742740811233,7.29259412,2014.8,2014.5,26.251]
[1742740811624,1.50156412,2014.7,2014.5,26.251]
[1742740815038,1.50156412,2014.7,2014.4,4.96407]
[1742740815543,1.50156412,2014.6,2014.3,4.9645]
[1742740815919,1.50156412,2014.6,2014.3,4.96434]
[1742740816120,6.46510412,2014.7,2014.3,8.73272313]
[1742740816320,1.50156412,2014.6,2014.3,8.73272313]
[1742740817439,1.50156412,2014.6,2014.4,4.96422]
[1742740817811,6.46510412,2014.7,2014.4,4.96422]
[1742740818011,1.50156412,2014.6,2014.4,4.96422]
[1742740818221,1.50156412,2014.6,2014.3,8.73282313]
[1742740818415,1.50156412,2014.6,2014.3,8.73270313]
[1742740818830,1.50156412,2014.6,2014.4,0.21994928]
[1742740819440,1.50156412,2014.6,2014.4,5.18418928]
[1742740820806,3.8277,2014.8,2014.5,4.96401]
[1742740821008,3.0,2014.8,2014.6,4.96357]
[1742740821206,3.0,2014.8,2014.6,10.14645547]
[1742740821417,4.4359,2014.9,2014.6,10.14645547]
[1742740821639,4.4359,2014.9,2014.7,4.96347]
[1742740822147,7.4359,2014.9,2014.8,0.21851969]
[1742740824015,7.4359,2014.9,2014.6,5.78381]
[1742740824217,7.4359,2014.9,2014.8,0.21851969]
[1742740825144,4.4359,2014.9,2014.8,5.18178969]
[1742740825343,4.4359,2014.9,2014.8,6.74502866]
[1742740827717,6.75906412,2014.9,2014.8,0.21851969]
[1742740828446,4.4359,2014.9,2014.8,0.21851969]
[1742740828748,9.75906412,2015.1,2014.8,5.18174969]
[1742740829052,7.4359,2015.1,2014.9,4.9629]
[1742740829415,7.4359,2015.1,2015.0,4.96277]
[1742740829826,7.4359,2015.1,2014.9,4.9629]
[1742740830047,8.93746412,2015.1,2014.9,4.9629]
[1742740830242,7.4359,2015.1,2014.9,4.9629]
[1742740831420,8.93746412,2015.1,2014.9,4.9629]
[1742740831625,7.4359,2015.1,2014.9,4.9629]
[1742740834553,4.50156412,2015.2,2014.9,4.9629]
[1742740836162,0.8216,2015.3,2015.0,4.666]
[1742740836457,4.50156412,2015.4,2015.1,4.96253]
[1742740836858,1.50156412,2015.3,2015.1,4.96253]
[1742740837037,4.50156412,2015.4,2015.1,4.96253]
[1742740837226,1.50156412,2015.3,2015.1,4.96253]
[1742740837766,3.0,2015.4,2015.1,4.96253]
[1742740837928,1.50156412,2015.3,2015.1,4.96253]
[1742740838329,4.50156412,2015.4,2015.1,4.96253]
[1742740838827,4.50156412,2015.4,2015.0,9.62877]
[1742740839141,4.50156412,2015.4,2015.1,4.96234]
[1742740839542,4.50156412,2015.4,2015.1,9.9247]
[1742740839840,4.50156412,2015.4,2015.1,4.96234]
[1742740840276,9.46337412,2015.4,2015.0,10.95106318]
[1742740840558,9.46337412,2015.4,2015.0,4.666]
[1742740840559,1.50156412,2015.2,2015.0,4.666]
[1742740840980,6.46389412,2015.2,2014.9,27.33847797]
[1742740841135,1.50156412,2015.1,2014.9,30.908]
[1742740842848,7.46376259,2015.2,2014.9,30.908]
[1742740843047,12.42624259,2015.2,2014.9,30.908]
[1742740843689,7.46420259,2015.0,2014.9,26.242]
[1742740843959,3.26533259,2015.0,2014.9,26.242]
[1742740844179,4.96277,2015.1,2014.9,26.242]
[1742740844561,9.92542,2015.1,2014.9,26.242]
[1742740844763,4.96263,2015.1,2014.8,0.21851969]
[1742740845354,8.22765259,2015.2,2014.8,6.97431366]
[1742740845778,8.22765259,2015.2,2014.8,6.97416366]
[1742740845980,4.96232,2015.2,2014.8,6.97416366]
[1742740846186,3.0,2015.2,2014.9,4.963]
[1742740847294,6.93733259,2015.3,2014.9,4.96285]
[1742740847498,4.4359,2015.3,2015.0,0.69739237]
[1742740847699,4.4359,2015.3,2015.1,4.96233]
[1742740848012,4.4359,2015.3,2015.0,6.47270237]
[1742740849801,4.4359,2015.3,2015.0,32.71264237]
[1742740850517,4.4359,2015.3,2015.1,4.96251]
[1742740850693,4.4359,2015.3,2015.1,2.05643679]
[1742740851058,4.4359,2015.3,2015.1,7.01893679]
[1742740851277,4.4359,2015.3,2015.1,7.01885679]
[1742740851475,4.4359,2015.3,2015.1,11.98120679]
[1742740851970,4.4359,2015.3,2015.2,4.96228]
[1742740852175,3.0,2015.5,2015.2,6.03638505]
[1742740852903,7.96155,2015.5,2015.2,6.03638505]
[1742740853470,3.0,2015.5,2015.2,6.03638505]
[1742740853823,0.1198781,2015.6,2015.4,4.96179]
[1742740854113,0.1198781,2015.6,2015.4,5.97634397]
[1742740854886,0.1198781,2015.6,2015.4,1.01455397]
[1742740857377,0.1198781,2015.6,2015.4,5.97628397]
[1742740859010,0.1198781,2015.6,2015.4,1.01455397]
[1742740860306,0.1198781,2015.6,2015.4,5.97624397]
[1742740861693,0.1198781,2015.6,2015.4,1.01455397]
[1742740861904,0.1198781,2015.6,2015.3,10.81779796]
[1742740862428,0.1198781,2015.6,2015.3,10.81767796]
[1742740862732,0.1198781,2015.6,2015.4,4.96176]
[1742740863026,0.1198781,2015.6,2015.5,4.96154]
[1742740864395,0.1198781,2015.6,2015.4,4.96172]
[1742740864595,0.1198781,2015.6,2015.4,11.6086963]
[1742740864808,0.1198781,2015.6,2015.4,6.6469763]
[1742740865013,0.1198781,2015.6,2015.5,4.96154]
[1742740865633,0.1198781,2015.6,2015.5,5.76634877]
[1742740865816,0.1198781,2015.6,2015.5,5.71674]
[1742740866013,0.1198781,2015.6,2015.5,7.45743343]
[1742740868830,0.1198781,2015.6,2015.5,33.69143343]
[1742740870232,0.1198781,2015.6,2015.5,27.97469343]
[1742740870435,7.58261069,2015.6,2015.5,26.234]
[1742740871321,2.62131069,2015.6,2015.5,26.234]
[1742740871638,7.58261069,2015.6,2015.5,26.234]
[1742740871845,8.38911069,2015.6,2015.5,26.234]
[1742740873750,8.38911069,2015.6,2015.4,4.664]
[1742740874052,8.38911069,2015.6,2015.2,31.19511]
[1742740874218,13.35062069,2015.6,2015.2,31.19511]
[1742740874421,13.35062069,2015.6,2015.2,35.85911]
[1742740875048,13.35053069,2015.6,2015.2,35.85911]
[1742740875255,8.38911069,2015.6,2015.2,26.233]
[1742740875424,4.96159,2015.5,2015.2,30.897]
[1742740875644,4.96159,2015.5,2015.2,34.979195]
[1742740876177,5.76854,2015.3,2015.2,26.233]
[1742740877472,8.76854,2015.3,2015.2,26.233]
[1742740878271,8.73164,2015.3,2015.2,26.233]
[1742740886182,4.96253,2015.1,2014.8,4.88251969]
[1742740886585,9.92518,2015.1,2014.8,4.88251969]
[1742740886978,4.96253,2015.1,2014.8,4.88251969]
[1742740887183,4.96253,2015.1,2014.8,9.06616666]
[1742740889403,4.96253,2015.1,2014.8,9.19141905]
[1742740889894,7.46396259,2015.1,2014.8,0.34377208]
[1742740890096,5.73429,2015.0,2014.8,0.34377208]
[1742740890265,5.73429,2015.0,2014.6,36.65445]
[1742740890874,5.73429,2015.0,2014.6,35.86675]
[1742740891106,2.50143259,2014.9,2014.6,35.86675]
[1742740891313,2.50143259,2014.9,2014.6,40.06908247]
[1742740891914,7.46447259,2014.9,2014.6,30.44133247]
[1742740892084,3.27283259,2014.7,2014.6,26.239]
[1742740892485,8.23634259,2014.7,2014.6,26.239]
[1742740892992,8.23634259,2014.7,2014.6,26.55633824]
[1742740894118,11.23634259,2014.7,2014.6,26.55633824]
[1742740894298,12.61521585,2014.7,2014.6,0.31733824]
[1742740894709,4.96434,2014.4,2014.0,9.62914]
[1742740894910,7.46577259,2014.4,2014.0,9.62914]
[1742740895510,0.8303,2014.3,2013.9,31.96724]
[1742740895708,7.46623259,2014.2,2013.9,27.0018]
[1742740896015,7.46623259,2014.2,2013.9,26.24]
[1742740896321,4.96501,2014.1,2013.9,26.24]
[1742740896821,7.46623259,2014.2,2013.9,26.24]
[1742740897640,12.43118259,2014.2,2013.9,26.24]
[1742740898895,7.46623259,2014.2,2013.9,26.24]
[1742740900121,7.46623259,2014.2,2013.9,30.399831]
[1742740900846,2.50143259,2014.2,2013.9,35.365311]
[1742740901341,7.46619259,2014.2,2013.9,30.399831]
[1742740902846,4.96511,2014.1,2013.9,26.24]
[1742740905442,4.96524,2014.0,2013.9,26.24]
[1742740905643,5.79834,2014.0,2013.9,26.24]
[1742740906632,8.29977259,2014.0,2013.9,26.24]
[1742740907423,4.96563,2013.9,2013.5,36.65475]
[1742740908026,9.93132,2013.9,2013.5,31.6883]
[1742740908616,4.96577,2013.8,2013.5,31.6883]
[1742740909019,4.96602,2013.7,2013.5,26.251]
[1742740910733,4.96622,2013.6,2013.5,26.251]
[1742740914826,4.96605,2013.7,2013.5,26.251]
[1742740915556,4.96622,2013.6,2013.5,26.251]
[1742740915855,4.96605,2013.7,2013.5,26.251]
[1742740916025,9.93223,2013.7,2013.5,26.251]
[1742740916226,4.96605,2013.7,2013.5,26.251]
[1742740916455,4.96575,2013.8,2013.5,30.418672]
[1742740916633,9.93172,2013.8,2013.5,30.418672]
[1742740916829,4.966,2013.7,2013.5,30.418672]
[1742740919265,4.966,2013.7,2013.5,26.251]
[1742740922460,11.90304259,2013.9,2013.5,26.251]
[1742740922755,7.96579,2013.8,2013.5,26.251]
[1742740922930,12.93173,2013.8,2013.5,26.251]
[1742740923356,3.0,2013.8,2013.5,26.251]
[1742740923529,12.93176,2013.8,2013.5,30.418662]
[1742740924363,7.96587,2013.8,2013.5,30.418662]
[1742740925268,12.93179,2013.8,2013.5,30.418662]
[1742740925563,7.96587,2013.8,2013.5,30.418662]
[1742740926666,7.96587,2013.8,2013.5,4.167662]
[1742740926835,4.96609,2013.7,2013.5,4.167662]
[1742740927934,9.93226,2013.7,2013.5,4.167662]
[1742740928149,9.93226,2013.7,2013.3,36.71595]
[1742740928579,4.96658,2013.5,2013.3,30.923]
[1742740928951,5.72192,2013.4,2013.3,26.257]
[1742740930249,8.72192,2013.4,2013.3,26.257]
[1742740930450,11.28112626,2013.4,2013.3,26.257]
[1742740932301,11.65613744,2013.4,2013.3,26.257]
[1742740932466,4.96746,2013.1,2013.0,1.0]
[1742740943223,7.46889259,2013.1,2013.0,1.0]
[1742740944113,8.24209259,2013.1,2013.0,1.0]
[1742740944885,13.50331585,2013.1,2013.0,1.0]
[1742740945268,12.73011585,2013.1,2013.0,1.0]
[1742740945474,13.50331585,2013.1,2013.0,1.0]
[1742740945681,13.50331585,2013.1,2011.0,0.1]
[1742740945682,4.97092,2011.7,2011.0,0.1]
[1742740945983,7.97224,2011.2,2011.1,0.31093673]
[1742740946384,7.97224,2011.2,2010.5,3.32203259]
[1742740946385,4.97298,2010.9,2010.5,31.8136]
[1742740946583,4.97328,2010.8,2010.5,31.8136]
[1742740946987,4.97363,2010.6,2010.5,27.0866]
[1742740948089,4.97352,2010.7,2010.5,26.266]
[1742740948276,4.97348,2010.7,2010.5,26.266]
[1742740948892,9.94697,2010.7,2010.5,26.266]
[1742740949070,4.97348,2010.7,2010.5,26.266]
[1742740950307,3.0,2011.2,2010.9,4.97285]
[1742740950471,4.972,2011.3,2010.9,4.97285]
[1742740950472,4.972,2011.3,2010.9,9.9457]
[1742740950677,9.94415,2011.3,2010.9,4.97285]
[1742740950902,4.972,2011.3,2010.9,4.97285]
[1742740951103,3.0,2011.3,2011.0,4.97263]
[1742740951296,3.0,2011.3,2011.0,5.469763]
[1742740951474,3.0,2011.3,2011.1,4.97229]
[1742740952707,4.4359,2011.5,2011.1,4.97229]
[1742740952905,2.50143259,2011.5,2011.2,5.79261]
[1742740953088,5.50143259,2011.5,2011.2,5.79261]
[1742740953610,10.47284259,2011.5,2011.2,5.79261]
[1742740953905,7.47284259,2011.5,2011.2,5.79261]
[1742740954104,4.97241,2011.1,2010.9,0.7718]
[1742740954310,2.50143259,2011.0,2010.8,4.754]
[1742740955483,7.47410259,2011.0,2010.6,5.74543]
[1742740955815,2.50143259,2010.8,2010.6,10.49831]
[1742740956388,2.50143259,2010.8,2010.6,15.47182]
[1742740956594,4.4359,2011.0,2010.7,4.97339]
[1742740956799,11.91002259,2011.0,2010.6,11.66171918]
[1742740959318,11.91002259,2011.0,2010.6,11.66168918]
[1742740959620,11.91002259,2011.0,2010.6,10.49842]
[1742740959823,11.91002259,2011.0,2010.6,15.4719]
[1742740960013,4.4359,2011.0,2010.7,9.94652]
[1742740960594,3.0,2011.0,2010.7,9.94652]
[1742740960794,3.0,2011.0,2010.7,4.9732]
[1742740961222,3.0,2011.0,2010.7,9.7212]
[1742740961530,4.97243,2011.1,2010.7,13.894462]
[1742740962024,4.97243,2011.1,2010.8,4.97313]
[1742740962626,4.97243,2011.1,2010.7,13.894462]
[1742740963995,16.88182259,2011.2,2010.8,4.97307]
[1742740964190,11.90948259,2011.2,2010.8,4.97307]
[1742740965026,6.30563259,2011.0,2010.1,4.98483]
[1742740965194,2.50143259,2010.8,2010.4,4.97393]
[1742740965397,2.50143259,2010.8,2010.6,4.97361]
[1742740965596,3.0,2010.8,2010.5,4.97381]
[1742740966233,12.54343285,2010.8,2010.4,4.97409]
[1742740966529,4.97341,2010.7,2010.3,4.97436]
[1742740966822,4.97341,2010.7,2010.3,9.94863]
[1742740967324,12.54343285,2010.8,2010.4,4.97409]
[1742740968100,7.57016285,2010.8,2010.4,9.94807]
[1742740968428,7.57016285,2010.8,2010.5,4.97377]
[1742740969939,3.0,2010.8,2010.6,4.9735]
[1742740970440,3.0,2010.8,2010.7,4.97339]
[1742740971967,3.0,2010.8,2010.6,0.7971]
[1742740972244,16.23384259,2010.8,2010.4,4.772]
[1742740972415,4.9734,2010.7,2010.4,4.772]
[1742740972615,7.04037626,2010.7,2010.2,5.77151]
[1742740972814,7.04037626,2010.7,2010.3,4.777]
[1742740973016,2.06697626,2010.7,2010.3,9.75127]
[1742740973234,7.04036626,2010.7,2010.3,9.75127]
[1742740973643,7.04036626,2010.7,2010.3,14.72551]
[1742740973820,8.75901,2010.8,2010.4,9.94785]
[1742740974022,3.7858,2010.8,2010.5,4.97383]
[1742740974339,3.0,2010.8,2010.5,4.97383]
[1742740975098,3.0,2010.8,2010.4,4.97388]
[1742740975307,7.97317,2010.8,2010.4,4.97388]
[1742740975533,7.97317,2010.8,2010.4,4.97402]
[1742740975860,9.6366988,2010.8,2010.4,4.97402]
[1742740976130,12.13813139,2010.8,2010.4,4.97402]
[1742740976633,5.7592,2010.7,2010.3,9.75128]
[1742740976802,5.7592,2010.7,2010.3,14.72548]
[1742740977536,0.7858,2010.7,2010.4,4.97398]
[1742740977936,3.0,2010.8,2010.5,4.97379]
[1742740978631,3.0,2010.8,2010.5,4.97378]
[1742740980334,3.0,2010.8,2010.7,4.97339]
[1742740980516,3.0,2010.8,2010.6,9.94709]
[1742740980725,3.0,2010.8,2010.6,4.9735]
[1742740981117,3.0,2010.9,2010.6,4.97349]
[1742740981311,3.0,2010.9,2010.7,9.94656]
[1742740981514,3.0,2010.9,2010.7,4.97326]
[1742740981921,3.0,2010.9,2010.6,9.94715]
[1742740982536,3.0,2010.9,2010.7,4.97337]
[1742740983242,3.0,2010.9,2010.6,4.97349]
[1742740984539,3.0,2010.9,2010.6,9.94699]
[1742740985537,3.0,2010.9,2010.6,4.97348]
[1742740985746,3.0,2010.9,2010.7,4.97329]
[1742740988364,3.0,2010.9,2010.5,0.7971]
[1742740988549,6.74936666,2010.9,2010.6,4.97359]
[1742740993350,5.2217,2011.1,2010.9,4.9728]
[1742740994448,5.2217,2011.1,2010.8,4.97314]
[1742740998466,5.2217,2011.1,2010.9,4.97274]
[1742740998964,0.7858,2011.1,2010.9,4.97274]
[1742740999266,0.7858,2011.1,2010.8,4.97314]
[1742740999643,0.7858,2011.1,2010.8,4.97301]
[1742741001469,3.28723259,2011.1,2010.8,4.97301]
[1742741005268,0.7858,2011.1,2010.8,9.94603]
[1742741005470,0.7858,2011.1,2010.9,4.97279]
[1742741006252,0.7858,2011.1,2010.8,4.97301]
[1742741006653,0.7858,2011.1,2010.9,0.28968146]
[1742741006944,4.91036985,2011.1,2010.8,4.97301]
[1742741007151,7.91036985,2011.1,2011.0,0.28924496]
[1742741007354,7.91036985,2011.1,2010.9,0.28961557]
[1742741007670,5.40893726,2011.1,2010.8,4.97301]
[1742741007971,3.7858,2011.1,2010.8,4.97301]
[1742741010138,3.7858,2011.1,2010.7,9.73037]
[1742741011678,8.75833,2011.1,2010.7,4.757]
[1742741011857,8.75833,2011.1,2010.6,40.969]
[1742741012447,8.75833,2011.1,2010.7,4.97334]
[1742741012649,10.82511526,2011.1,2010.7,4.97334]
[1742741015682,5.85258526,2011.1,2010.8,4.97312]
[1742741015980,10.82498526,2011.1,2010.7,4.97334]
[1742741016878,5.85258526,2011.1,2010.7,4.97334]
[1742741017283,5.85258526,2011.1,2010.7,4.97328]
[1742741018081,5.85258526,2011.1,2010.8,4.97312]
[1742741018869,5.85258526,2011.1,2010.7,4.97333]
[1742741020183,5.85258526,2011.1,2010.7,4.97328]
[1742741020952,5.85258526,2011.1,2010.7,9.94651]
[1742741021576,5.85258526,2011.1,2010.8,4.97314]
[1742741022485,5.85258526,2011.1,2010.7,4.97323]
[1742741022686,5.85258526,2011.1,2010.7,9.94644]
[1742741022859,5.85258526,2011.1,2010.7,9.94642]
[1742741023386,5.85258526,2011.1,2010.7,4.97321]
[1742741023687,5.85258526,2011.1,2010.7,9.94644]
[1742741024056,5.85258526,2011.1,2010.7,4.97321]
[1742741024459,5.85258526,2011.1,2010.7,9.94642]
[1742741025995,5.85258526,2011.1,2010.7,9.9465]
[1742741026288,5.85258526,2011.1,2010.7,4.97321]
[1742741026489,5.85258526,2011.1,2010.7,9.94643]
[1742741026662,5.85258526,2011.1,2010.7,4.97321]
[1742741027083,8.35401785,2011.1,2010.7,4.97321]
[1742741027459,13.32642785,2011.1,2010.7,4.97321]
[1742741027660,0.8088,2010.9,2010.7,4.97321]
[1742741027861,6.31023259,2010.9,2010.6,26.295]
[1742741028076,15.71912259,2010.9,2010.6,26.295]
[1742741028488,20.69224259,2010.9,2010.6,26.295]
[1742741028693,0.8088,2010.7,2010.6,26.295]
[1742741029562,11.28362259,2010.7,2010.6,26.295]
[1742741032701,4.97368,2010.6,2010.3,4.7]
[1742741033412,4.97368,2010.6,2010.2,36.24307]
[1742741033595,4.97368,2010.6,2010.2,35.96647]
[1742741033998,9.40958,2010.6,2010.2,35.96647]
[1742741034307,9.40954,2010.6,2010.3,4.97428]
[1742741034677,14.38337,2010.6,2010.2,35.96645]
[1742741034881,4.97389,2010.5,2010.2,30.992]
[1742741038706,4.97422,2010.4,2010.2,30.992]
[1742741039112,9.94857,2010.4,2010.2,26.294]
[1742741039415,5.78302,2010.4,2010.2,26.294]
[1742741039711,7.47581259,2010.3,2010.2,26.294]
[1742741039890,8.78342,2010.2,2010.1,0.01]
[1742741044218,9.15920272,2010.2,2010.1,0.01]
[1742741045719,13.59510272,2010.2,2010.1,0.01]
[1742741056026,4.4359,2010.2,2010.1,0.01]
[1742741056195,12.41052,2010.2,2010.1,0.01]
[1742741056393,9.41052,2010.2,2010.1,0.01]
[1742741056598,4.4359,2010.2,2010.1,0.01]
[1742741056807,7.4359,2010.2,2010.1,0.01]
[1742741057325,3.0,2010.2,2010.1,0.01]
[1742741058628,7.97462,2010.2,2010.1,0.01]
[1742741059499,3.0,2010.2,2010.1,0.01]
[1742741060123,3.0,2010.2,2010.1,0.7808]
[1742741060722,2.50143259,2010.3,2010.1,0.7808]
[1742741060926,3.0,2010.2,2010.1,0.7808]
[1742741061829,3.0,2010.2,2010.1,0.01]
[1742741062329,9.46577926,2010.2,2010.1,0.01]
[1742741063209,13.90167926,2010.2,2010.1,0.01]
[1742741063452,14.66557926,2010.2,2010.1,0.01]
[1742741066611,11.91195259,2010.2,2010.1,0.01]
[1742741066956,9.93733259,2010.2,2010.1,0.01]
[1742741067605,9.93733259,2010.2,2010.1,0.28140799]
[1742741069223,5.50143259,2010.2,2010.1,0.28140799]
[1742741073366,4.4359,2010.3,2010.1,0.28140799]
[1742741073660,6.93733259,2010.5,2010.2,5.76082]
[1742741073843,3.0,2010.4,2010.2,6.03185708]
[1742741074042,3.0,2010.4,2010.2,6.03176708]
[1742741074222,3.0,2010.4,2010.3,4.97438]
[1742741074428,3.0,2010.4,2010.3,5.24504621]
[1742741074837,3.0,2010.4,2010.3,0.27066621]
[1742741075345,9.72836326,2010.4,2010.3,0.27066621]
[1742741075963,7.97462,2010.2,2010.1,0.01]
[1742741076152,10.47605259,2010.2,2010.1,0.01]
[1742741076536,15.67245259,2010.2,2010.1,0.01]
[1742741077530,15.67245259,2010.2,2010.1,0.28140799]
[1742741077732,18.58407643,2010.2,2010.1,0.28140799]
[1742741087561,18.58407643,2010.2,2010.1,0.01]
[1742741090066,16.08264384,2010.2,2010.1,0.01]
[1742741090367,18.58407643,2010.2,2010.1,0.01]
[1742741091270,18.58407643,2010.2,2010.1,0.28250722]
[1742741096436,17.82357643,2010.2,2010.1,0.28250722]
[1742741096643,9.93733259,2010.2,2010.1,0.01]
[1742741097251,9.93733259,2010.2,2010.1,0.28246327]
[1742741097454,7.4359,2010.2,2010.1,0.28246327]
[1742741098074,4.4359,2010.3,2010.1,0.28246327]
[1742741098370,4.4359,2010.3,2010.2,0.8328]
[1742741098569,7.4359,2010.3,2010.2,5.80742]
[1742741098743,7.4359,2010.3,2010.2,7.185542]
[1742741098944,7.4359,2010.3,2010.2,2.210922]
[1742741099143,7.4359,2010.3,2010.2,1.10445267]
[1742741099755,7.4359,2010.3,2010.2,0.27165267]
[1742741100075,7.4359,2010.3,2010.1,0.01]
[1742741100076,3.0,2010.2,2010.1,0.01]
[1742741100439,7.4359,2010.3,2010.1,0.01]
[1742741100673,3.0,2010.2,2010.1,0.01]
[1742741101377,3.0,2010.3,2010.1,0.01]
[1742741101878,10.47605259,2010.2,2010.1,0.01]
[1742741103275,5.50143259,2010.2,2010.1,0.01]
[1742741106450,11.60322485,2010.2,2010.1,0.01]
[1742741107382,16.03912485,2010.2,2010.1,0.01]
[1742741108456,16.81572485,2010.2,2010.1,0.01]
[1742741117258,17.36572485,2010.2,2010.1,0.01]
[1742741122302,14.31429226,2010.2,2010.1,0.01]
[1742741122460,16.81572485,2010.2,2010.1,0.01]
[1742741124089,17.36572485,2010.2,2010.1,0.01]
[1742741128694,16.58912485,2010.2,2010.1,0.01]
[1742741130102,16.03912485,2010.2,2010.1,0.01]
[1742741130398,14.91195259,2010.2,2010.1,0.01]
[1742741130580,11.91195259,2010.2,2010.1,0.01]
[1742741130763,14.91195259,2010.2,2010.1,0.01]
[1742741134306,14.91195259,2010.2,2010.1,0.8001]
[1742741134506,14.91195259,2010.2,2010.1,0.01]
[1742741134805,16.90059685,2010.2,2010.1,0.01]
[1742741136685,17.45059685,2010.2,2010.1,0.01]
[1742741140082,18.23199685,2010.2,2010.1,0.01]
[1742741149629,18.23199685,2010.2,2009.5,0.7901]
[1742741149630,4.97611,2009.6,2009.5,0.7901]
[1742741149832,4.97611,2009.6,2009.2,0.7881]
[1742741149833,4.97694,2009.3,2009.2,0.7881]
[1742741151518,7.97694,2009.3,2009.2,0.7881]
[1742741154138,12.41284,2009.3,2009.2,0.7881]
[1742741156502,7.4359,2009.3,2009.2,0.7881]
[1742741156709,7.4359,2009.3,2009.2,8.57501]
[1742741156903,7.4359,2009.3,2009.2,0.7881]
[1742741157739,7.4359,2009.3,2009.2,0.77094313]
[1742741158442,12.41275,2009.3,2009.2,0.77094313]
[1742741159245,7.4359,2009.3,2009.2,0.77094313]
[1742741160139,3.0,2009.3,2009.2,0.77094313]
[1742741160647,3.0,2009.3,2009.2,1.04830752]
[1742741161336,7.97685,2009.3,2009.2,1.04830752]
[1742741161923,3.0,2009.3,2009.2,1.04830752]
[1742741163448,3.0,2009.3,2009.2,4.38189227]
[1742741164168,4.4359,2009.5,2009.3,5.73483]
[1742741164311,4.4359,2009.5,2009.4,5.7348]
[1742741164516,4.4359,2009.5,2009.4,6.0115759]
[1742741164767,7.4359,2009.5,2009.4,6.0115759]
[1742741165058,7.4359,2009.5,2009.4,7.52047933]
[1742741165232,7.4359,2009.5,2009.4,2.54387933]
[1742741165551,7.4359,2009.5,2009.4,1.0349759]
[1742741165911,3.0,2009.5,2009.4,1.0349759]
[1742741172531,3.0,2009.6,2009.5,5.73456]
[1742741172921,3.0,2009.6,2009.5,6.00955727]
[1742741173746,3.0,2009.9,2009.6,9.95198]
[1742741173922,3.0,2009.9,2009.7,1.78089773]
[1742741174123,3.0,2009.9,2009.8,0.27388399]
[1742741175350,4.4359,2010.1,2010.0,4.97512]
[1742741175523,7.4359,2010.1,2010.0,0.8178]
[1742741175718,4.4359,2010.4,2010.0,6.06530443]
[1742741175921,4.4359,2010.4,2010.0,6.11500149]
[1742741176123,4.4359,2010.4,2010.1,4.97475]
[1742741176343,3.0,2010.3,2010.2,0.27178456]
[1742741176528,3.0,2010.3,2010.2,1.08958456]
[1742741176728,7.97389,2010.5,2010.2,5.4988]
[1742741176954,7.97389,2010.5,2010.2,5.77012299]
[1742741177319,7.97389,2010.5,2010.2,4.95232299]
[1742741177518,7.47532259,2010.5,2010.2,4.95232299]
[1742741177719,3.0,2010.3,2010.2,4.95232299]
[1742741181257,3.0,2010.4,2010.2,13.71883563]
[1742741181450,3.0,2010.4,2010.3,0.7715]
[1742741181624,3.0,2010.4,2010.3,6.01456834]
[1742741182653,3.0,2010.4,2010.3,1.04018834]
[1742741186165,3.0,2010.4,2010.3,6.01456834]
[1742741186341,3.0,2010.4,2010.3,7.06508388]
[1742741190144,3.0,2010.4,2010.3,2.09070388]
[1742741190349,3.0,2010.4,2010.3,7.06508388]
[1742741200176,4.97339,2010.7,2010.3,7.06508388]
[1742741200478,3.0,2010.6,2010.3,7.06508388]
[1742741201103,3.0,2010.6,2010.3,2.09070388]
[1742741201280,3.0,2010.6,2010.3,7.06486388]
[1742741201483,3.0,2010.6,2010.3,12.03908388]
[1742741202281,3.7819,2010.6,2010.3,1.31920388]
[1742741202481,7.97413,2010.4,2010.3,0.26868834]
[1742741202681,7.97438,2010.3,2010.2,26.302]
[1742741202888,10.47581259,2010.3,2010.2,26.57024634]
[1742741206106,14.91171259,2010.3,2010.2,0.26824634]
[1742741206256,4.975,2010.1,2009.8,4.678]
[1742741206581,4.975,2010.1,2009.9,0.27030399]
[1742741206953,8.78212,2010.0,2009.6,30.98]
[1742741207367,8.78212,2010.0,2009.6,30.93]
[1742741208092,14.88577526,2010.0,2009.6,31.22802]
[1742741208689,9.91047526,2010.0,2009.6,31.22802]